fUSD/lending_fUSD_20241105
["ID","MTS","AMOUNT","RATE_DAILY","PERIOD"]
[341368333,1730845843411,-1559.73534226,0.00037951,2]
[341368334,1730845845706,-151.0,0.00029899,7]
[341368335,1730845845715,-9565.49465774,0.00037951,2]
[341368336,1730845845725,-540.55,0.00038258,2]
[341368337,1730845845734,-1464.17163142,0.00038356,2]
[341368338,1730845845757,-4169.08836858,0.00038356,2]
[341368339,1730845845766,-540.55,0.00038853,2]
[341368340,1730845845775,-166.88,0.00038865,2]
[341368341,1730845845785,-426.869,0.00039237,54]
[341368342,1730845845794,-53.04167446,0.00039449,14]
[341368343,1730845845898,-97.95832554,0.00039449,14]
[341368344,1730845845908,-151.0,0.00039449,14]
[341368345,1730845845917,-151.0,0.00039449,14]
[341368346,1730845845928,-32.05070332,0.00039449,14]
[341368347,1730845845941,-118.94929668,0.00039449,14]
[341368348,1730845845950,-151.0,0.00039449,14]
[341368349,1730845845960,-151.0,0.00039449,14]
[341368350,1730845845969,-151.0,0.00039449,14]
[341368352,1730845845979,-151.0,0.00039449,14]
[341368353,1730845845988,-151.0,0.00039449,14]
[341368354,1730845845998,-540.55,0.00039449,2]
[341368355,1730845846009,-524.24,0.00039457,2]
[341368356,1730845846018,-150.67,0.00039665,120]
[341368357,1730845846027,-2041.67490939,0.000397,2]
[341368360,1730845846943,156.57,0.00015342,2]
[341368362,1730846145704,150.0,0.0002371,30]
[341368363,1730846345645,155.0,0.00015342,2]
[341368365,1730846676639,-150.0,0.00018107,2]
[341368366,1730846676660,-2043.57069932,0.0002,2]
[341368367,1730846717116,201.57655986,0.00018121,2]
[341368401,1730846899354,154.6,0.00015342,2]
[341368506,1730846959096,-250.0,0.00021,2]
[341368507,1730846959118,-300.0,0.00023,2]
[341368508,1730846959139,-154.6,0.00024031,2]
[341368509,1730846959160,-1796.3943,0.000286,2]
[341368510,1730846959180,-434.0,0.000287,2]
[341368511,1730846959202,-2043.0,0.000287,2]
[341368512,1730846959224,-3004.2177144,0.000287,2]
[341368513,1730846959249,-500.0,0.0003071,30]
[341368514,1730846959270,-500.0,0.0003071,30]
[341368515,1730846959291,-500.0,0.0003071,30]
[341368516,1730846959313,-154.6,0.0003272,2]
[341368517,1730846959334,-150.0,0.00034548,10]
[341368518,1730846959355,-213.1879856,0.00035,120]
[341368572,1730846977674,-610.8741811,0.00035,120]
[341368573,1730846977694,-150.99,0.00035,30]
[341368574,1730846977718,-472.52,0.00036776,2]
[341368575,1730846977739,-650.0,0.00037,120]
[341368576,1730846977760,-216.87,0.00037356,2]
[341368577,1730846977783,-298.77,0.00037965,2]
[341368578,1730846977807,-189.35,0.00037979,2]
[341368579,1730846977829,-389.10125652,0.00037997,2]
[341368580,1730846977852,-6520.09,0.00038251,2]
[341368581,1730846977872,-389.10125652,0.00038324,2]
[341368582,1730846977891,-112.33330586,0.00038379,2]
[341368583,1730846983966,-137.66669414,0.00038379,2]
[341368584,1730846983992,-250.0,0.00038379,120]
[341368585,1730846984012,-389.10125652,0.0003838,2]
[341368586,1730846984033,-200.0,0.00038469,7]
[341368587,1730846984054,-6236.66,0.00038492,2]
[341368588,1730846984075,-259.42,0.00038492,2]
[341368589,1730846984096,-2527.15204934,0.00038558,2]
[341368595,1730847031705,-1173.88307995,0.00038558,2]
[341368596,1730847031719,-370.45425451,0.00038558,2]
[341368597,1730847031744,-730.29908447,0.00038558,2]
[341368601,1730847037680,-1003.58875594,0.00038558,2]
[341368602,1730847037720,-15686.17277579,0.00038558,2]
[341368603,1730847037730,-298.77,0.00038575,2]
[341368604,1730847037739,-150.67,0.00038594,120]
[341368605,1730847037749,-450.0,0.00038791,4]
[341368606,1730847037759,-640.0,0.00038791,2]
[341368607,1730847037769,-389.10125652,0.00038894,2]
[341368608,1730847037778,-650.0,0.00039,120]
[341368609,1730847037788,-389.10125652,0.00039013,2]
[341368610,1730847037798,-298.77,0.00039185,2]
[341368611,1730847037807,-389.10125656,0.00039289,2]
[341368612,1730847037818,-360.0,0.0003936,2]
[341368613,1730847037828,-1000.0,0.00039424,3]
[341368614,1730847037838,-341.495,0.00039449,54]
[341368615,1730847037847,-1361.69963542,0.000397,2]
[341368616,1730847037859,-298.77,0.00039795,2]
[341368617,1730847037868,-5229.62674525,0.0004,120]
[341368618,1730847037879,-260.92580151,0.0004,120]
[341368619,1730847037892,-5894.98095558,0.0004,120]
[341368620,1730847037911,-21967.231667,0.0004,120]
[341368621,1730847037923,-1732.86483066,0.0004,120]
[341368622,1730847037933,-158.626,0.0004025,2]
[341368623,1730847037943,-298.77,0.00040405,2]
[341368624,1730847037952,-500.0,0.00040639,2]
[341368625,1730847038059,-1629.19311255,0.00040669,5]
[341368626,1730847038091,-834.228,0.00040895,2]
[341368627,1730847038101,-149.66899715,0.00040895,2]
[341368628,1730847038112,-548.28100285,0.00040895,2]
[341368629,1730847038123,-2809.1521,0.00040895,2]
[341368630,1730847038132,-1474.0383,0.00040895,2]
[341368631,1730847038141,-1000.0,0.00040895,2]
[341368632,1730847038150,-2500.0,0.00040895,2]
[341368633,1730847038159,-159.40929689,0.00040895,28]
[341368634,1730847038168,-352.98730724,0.00040895,2]
[341368635,1730847038177,-6927.21672573,0.00040895,2]
[341368636,1730847038186,-217.05276592,0.00040985,2]
[341368637,1730847038195,-500.0,0.00040994,31]
[341368638,1730847038205,-553.5974227,0.00040994,31]
[341368639,1730847038214,-258.0,0.00040994,5]
[341368640,1730847038224,-312328.08688896,0.00040995,2]
[341368652,1730847038335,-2458.16967309,0.00040995,2]
[341368657,1730847038375,-742.11629914,0.00040995,2]
[341368659,1730847038387,-277.0527081,0.00040995,2]
[341368661,1730847038399,-257.82237684,0.00040995,2]
[341368785,1730847039673,-339.5935685,0.00040405,2]
[341368812,1730847039899,-160.4064315,0.00040405,2]
[341368814,1730847039908,-31910.76904014,0.00040995,2]
[341368833,1730847040087,-872.60975384,0.00040995,2]
[341368838,1730847040128,-500.0,0.00040639,2]
[341368840,1730847040137,-960.04203268,0.00040995,2]
[341369134,1730847042864,-448.89,0.00038307,2]
[341369138,1730847042875,-448.89,0.00040571,2]
[341369141,1730847042885,-1000.0,0.00040895,2]
[341369143,1730847042895,-233.0,0.00040995,5]
[341369146,1730847042904,-6224.68898233,0.00040995,2]
[341369155,1730847042952,-363.60885585,0.00040995,2]
[341369157,1730847042963,-817.1,0.00040995,2]
[341369160,1730847042974,-759.1,0.00040995,2]
[341369539,1730847045863,-346.76974357,0.00040995,2]
[341369552,1730847045982,-26135.86109472,0.00040995,2]
[341369554,1730847045994,-33800.45091569,0.00040995,2]
[341369561,1730847046068,-5800.7172,0.00040995,2]
[341369564,1730847046090,-1445.871224,0.00040995,2]
[341370757,1730847963608,151.09,0.0002,2]
[341370824,1730848231788,-1839.0,0.000289,2]
[341370826,1730848231797,-130.74987323,0.0003,2]
[341370827,1730848231810,-25.43662677,0.0003,2]
[341370828,1730848231821,-156.1865,0.0003,2]
[341370829,1730848231833,-317.72561666,0.0003762,2]
[341370830,1730848231850,-142.38438334,0.0003762,2]
[341370831,1730848231861,-237.25,0.00038631,2]
[341370832,1730848231870,-140.78555582,0.00039252,2]
[341370833,1730848231987,-96.46444418,0.00039252,2]
[341370834,1730848231997,-250.0,0.00039407,120]
[341370835,1730848232006,-250.0,0.00039485,2]
[341370836,1730848232015,-200.0,0.00039542,7]
[341370837,1730848232024,-155.62,0.00039543,2]
[341370838,1730848232033,-189.35,0.00039547,2]
[341370839,1730848232042,-1884.15,0.00039547,2]
[341370840,1730848232051,-512.0,0.00039558,2]
[341370841,1730848232061,-4169.08,0.00039565,2]
[341370842,1730848232070,-415.36,0.0003958,2]
[341370843,1730848232079,-150.67,0.00039682,120]
[341370844,1730848232089,-237.25,0.00039873,2]
[341370845,1730848232098,-460.11,0.00039883,2]
[341370846,1730848232107,-3808.37431263,0.0004,5]
[341370941,1730848238251,-13339.62568737,0.0004,5]
[341370942,1730848238260,-488.0,0.00040116,2]
[341370943,1730848238271,-358.57,0.00040123,57]
[341370944,1730848238280,-237.25,0.00040493,2]
[341370945,1730848238290,-183.110608,0.00040498,120]
[341370946,1730848238299,-549.93560596,0.00040795,3]
[341370947,1730848238311,-2827.29447775,0.00040888,60]
[341370948,1730848238321,-486.0334,0.00040895,2]
[341370949,1730848238332,-3578.8462,0.00040895,2]
[341370950,1730848238343,-4696.4295,0.00040895,2]
[341370951,1730848238352,-367.8,0.00040895,2]
[341370952,1730848238363,-1000.0,0.00040895,2]
[341370953,1730848238372,-3548.9615,0.00040895,2]
[341370954,1730848238382,-2042.4565,0.00040895,2]
[341370955,1730848238391,-572.8108,0.00040895,2]
[341370956,1730848238400,-2500.0,0.00040895,2]
[341370957,1730848238410,-533.09999999,0.00040991,7]
[341370958,1730848238419,-1000.0,0.00040994,120]
[341370959,1730848238428,-14282.8691,0.00040995,2]
[341370960,1730848238437,-329.45481996,0.00040995,2]
[341370961,1730848238446,-173.50784981,0.00040995,30]
[341370962,1730848238458,-180.85600411,0.00040995,30]
[341370963,1730848238470,-10000.0,0.00041,120]
[341370964,1730848238479,-550.0,0.00041,120]
[341370965,1730848238488,-4500.88,0.00041068,60]
[341370966,1730848238497,-500.0,0.00041073,2]
[341370967,1730848238507,-151.28463328,0.00041073,5]
[341370968,1730848238516,-217.05276592,0.00041085,2]
[341370969,1730848238525,-3538.62230134,0.00041088,60]
[341370970,1730848238535,-500.0,0.00041093,31]
[341370971,1730848238544,-303.82312389,0.00041093,31]
[341370972,1730848238556,-500.0,0.00041094,2]
[341370973,1730848238566,-1346994.06860252,0.00041094,2]
[341370974,1730848238575,-19229.11430316,0.00041094,2]
[341370975,1730848238585,-152.0,0.00041095,5]
[341370976,1730848238595,-503.76669436,0.00041095,14]
[341370977,1730848238604,-521.62118941,0.00041095,14]
[341370978,1730848238613,-518.51799606,0.00041095,14]
[341370979,1730848238623,-513.39366426,0.00041095,14]
[341370980,1730848238632,-500.0,0.00041095,14]
[341370981,1730848238642,-523.53633886,0.00041095,14]
[341370982,1730848238651,-500.0,0.00041095,14]
[341370983,1730848238660,-500.0,0.00041095,14]
[341370984,1730848238669,-500.0,0.00041095,14]
[341370985,1730848238678,-500.0,0.00041095,14]
[341370986,1730848238687,-503.83943314,0.00041095,14]
[341370987,1730848238696,-506.06176269,0.00041095,14]
[341370988,1730848238706,-500.0,0.00041095,14]
[341370989,1730848238717,-508.38659106,0.00041095,14]
[341370990,1730848238726,-507.10756872,0.00041095,14]
[341370991,1730848238736,-551.44657916,0.00041095,14]
[341370992,1730848238745,-500.0,0.00041095,14]
[341370993,1730848238754,-500.0,0.00041095,14]
[341370994,1730848238763,-500.0,0.00041095,14]
[341370995,1730848238773,-500.0,0.00041095,14]
[341370996,1730848238782,-500.0,0.00041095,14]
[341370997,1730848238791,-504.67169663,0.00041095,14]
[341370998,1730848238801,-625.82970064,0.00041095,14]
[341370999,1730848238812,-500.0,0.00041095,14]
[341371000,1730848238821,-155.413208,0.00041095,14]
[341371001,1730848238831,-501.96578437,0.00041095,14]
[341371002,1730848238839,-563.37681314,0.00041095,14]
[341371003,1730848238848,-506.41080449,0.00041095,14]
[341371004,1730848238858,-500.0,0.00041095,14]
[341371005,1730848238868,-500.0,0.00041095,14]
[341371006,1730848238877,-508.32451803,0.00041095,14]
[341371007,1730848238887,-500.0,0.00041095,14]
[341371008,1730848238896,-510.42002979,0.00041095,14]
[341371009,1730848238905,-500.0,0.00041095,14]
[341371010,1730848238915,-501.51284113,0.00041095,14]
[341371011,1730848238924,-500.0,0.00041095,14]
[341371012,1730848238933,-500.0,0.00041095,14]
[341371013,1730848238943,-502.871629,0.00041095,14]
[341371014,1730848238952,-500.0,0.00041095,14]
[341371015,1730848238961,-500.0,0.00041095,14]
[341371016,1730848238975,-500.0,0.00041095,14]
[341371017,1730848238985,-503.18399626,0.00041095,14]
[341371018,1730848239000,-502.6943188,0.00041095,14]
[341371019,1730848239009,-511.71019696,0.00041095,14]
[341371020,1730848239018,-500.0,0.00041095,14]
[341371021,1730848239027,-500.0,0.00041095,14]
[341371022,1730848239036,-245.755759,0.00041095,14]
[341371023,1730848239045,-500.0,0.00041095,5]
[341371024,1730848239054,-500.0,0.00041095,14]
[341371025,1730848239063,-503.78544113,0.00041095,14]
[341371026,1730848239072,-500.0,0.00041095,14]
[341371027,1730848239082,-500.0,0.00041095,14]
[341371028,1730848239092,-500.0,0.00041095,14]
[341371029,1730848239101,-317.31413867,0.00041095,14]
[341371030,1730848239110,-500.0,0.00041095,14]
[341371031,1730848239119,-500.0,0.00041095,14]
[341371032,1730848239129,-500.0,0.00041095,14]
[341371033,1730848239138,-500.0,0.00041095,14]
[341371034,1730848239147,-506.53795553,0.00041095,14]
[341371035,1730848239156,-500.0,0.00041095,14]
[341371036,1730848239166,-500.0,0.00041095,14]
[341371037,1730848239175,-500.0,0.00041095,14]
[341371038,1730848239186,-500.0,0.00041095,14]
[341371039,1730848239195,-500.55817338,0.00041095,14]
[341371040,1730848239205,-808.83,0.00041095,14]
[341371041,1730848239214,-509.65126353,0.00041095,14]
[341371042,1730848239229,-500.0,0.00041095,14]
[341371043,1730848239238,-550.38,0.00041095,14]
[341371044,1730848239247,-500.0,0.00041095,14]
[341371045,1730848239257,-500.0,0.00041095,14]
[341371046,1730848239267,-151.0,0.00041095,14]
[341371047,1730848239276,-511.58875546,0.00041095,14]
[341371048,1730848239285,-500.0,0.00041095,14]
[341371049,1730848239294,-534.80336618,0.00041095,14]
[341371050,1730848239304,-500.0,0.00041095,14]
[341371051,1730848239313,-500.0,0.00041095,14]
[341371052,1730848239323,-500.0,0.00041095,14]
[341371053,1730848239332,-543.65,0.00041095,14]
[341371054,1730848239342,-500.0,0.00041095,14]
[341371055,1730848239351,-585.22,0.00041095,14]
[341371056,1730848239361,-500.0,0.00041095,14]
[341371057,1730848239370,-500.0,0.00041095,14]
[341371058,1730848239380,-551.51131005,0.00041095,14]
[341371059,1730848239389,-500.0,0.00041095,14]
[341371060,1730848239398,-530.96796395,0.00041095,14]
[341371061,1730848239408,-500.0,0.00041095,14]
[341371062,1730848239417,-500.99842849,0.00041095,14]
[341371063,1730848239427,-500.0,0.00041095,14]
[341371064,1730848239436,-500.0,0.00041095,14]
[341371065,1730848239445,-500.0,0.00041095,14]
[341371066,1730848239456,-504.33277929,0.00041095,14]
[341371067,1730848239468,-500.0,0.00041095,14]
[341371068,1730848239477,-505.58336758,0.00041095,14]
[341371069,1730848239487,-500.0,0.00041095,14]
[341371070,1730848239496,-151.0,0.00041095,14]
[341371071,1730848239505,-154.637134,0.00041095,14]
[341371072,1730848239515,-510.44025284,0.00041095,14]
[341371073,1730848239527,-500.0,0.00041095,14]
[341371074,1730848239536,-500.0,0.00041095,14]
[341371075,1730848239548,-500.0,0.00041095,14]
[341371076,1730848239561,-499.56979032,0.00041095,14]
[341371077,1730848239570,-500.0,0.00041095,14]
[341371078,1730848239579,-500.0,0.00041095,14]
[341371079,1730848239588,-539.34029403,0.00041095,14]
[341371080,1730848239599,-151.0,0.00041095,14]
[341371081,1730848239609,-508.66912552,0.00041095,14]
[341371082,1730848239619,-163.956097,0.00041095,14]
[341371083,1730848239632,-503.48081976,0.00041095,14]
[341371084,1730848239642,-500.0,0.00041095,14]
[341371085,1730848239653,-151.0,0.00041095,14]
[341371086,1730848239664,-151.0,0.00041095,14]
[341371087,1730848239673,-151.0,0.00041095,14]
[341371088,1730848239683,-500.0,0.00041095,14]
[341371089,1730848239692,-151.0,0.00041095,14]
[341371090,1730848239702,-151.0,0.00041095,14]
[341371091,1730848239712,-401.36529784,0.00041095,14]
[341371092,1730848239728,-151.0,0.00041095,14]
[341371093,1730848239738,-151.0,0.00041095,14]
[341371094,1730848239747,-151.0,0.00041095,14]
[341371095,1730848239757,-151.0,0.00041095,14]
[341371096,1730848239767,-151.0,0.00041095,14]
[341371097,1730848239779,-500.0,0.00041095,14]
[341371098,1730848239791,-500.0,0.00041095,14]
[341371099,1730848239802,-500.0,0.00041095,14]
[341371100,1730848239811,-500.0,0.00041095,14]
[341371101,1730848239820,-500.0,0.00041095,14]
[341371103,1730848239939,-500.0,0.00041095,14]
[341371104,1730848239950,-607.12,0.00041095,14]
[341371105,1730848239959,-500.0,0.00041095,14]
[341371106,1730848239969,-500.0,0.00041095,14]
[341371107,1730848239979,-500.0,0.00041095,14]
[341371108,1730848239987,-500.0,0.00041095,14]
[341371109,1730848239996,-500.0,0.00041095,14]
[341371110,1730848240006,-500.0,0.00041095,14]
[341371111,1730848240017,-500.0,0.00041095,14]
[341371112,1730848240027,-500.0,0.00041095,14]
[341371113,1730848240037,-500.0,0.00041095,14]
[341371114,1730848240048,-500.0,0.00041095,14]
[341371115,1730848240059,-500.0,0.00041095,14]
[341371116,1730848240068,-270.54159376,0.00041095,14]
[341371117,1730848240078,-503.4197467,0.00041095,14]
[341371118,1730848240090,-500.0,0.00041095,14]
[341371119,1730848240100,-500.0,0.00041095,14]
[341371120,1730848240110,-500.0,0.00041095,14]
[341371121,1730848240122,-500.0,0.00041095,14]
[341371122,1730848240133,-505.57096627,0.00041095,14]
[341371123,1730848240143,-152.934687,0.00041095,14]
[341371124,1730848240153,-500.0,0.00041095,14]
[341371125,1730848240163,-500.0,0.00041095,14]
[341371126,1730848240172,-500.0,0.00041095,14]
[341371127,1730848240181,-556.66,0.00041095,14]
[341371128,1730848240190,-500.0,0.00041095,14]
[341371129,1730848240200,-510.24542324,0.00041095,14]
[341371130,1730848240209,-531.62507138,0.00041095,14]
[341371131,1730848240221,-500.0,0.00041095,14]
[341371132,1730848240230,-500.0,0.00041095,14]
[341371133,1730848240240,-500.0,0.00041095,14]
[341371134,1730848240250,-500.0,0.00041095,14]
[341371135,1730848240261,-500.0,0.00041095,14]
[341371136,1730848240271,-500.0,0.00041095,14]
[341371137,1730848240281,-500.0,0.00041095,14]
[341371138,1730848240291,-503.183174,0.00041095,14]
[341371139,1730848240303,-500.0,0.00041095,14]
[341371140,1730848240314,-500.0,0.00041095,14]
[341371141,1730848240326,-500.0,0.00041095,14]
[341371143,1730848240336,-500.0,0.00041095,14]
[341371145,1730848240347,-500.0,0.00041095,14]
[341371147,1730848240356,-500.0,0.00041095,14]
[341371149,1730848240366,-500.0,0.00041095,14]
[341371151,1730848240375,-500.0,0.00041095,14]
[341371153,1730848240384,-500.0,0.00041095,14]
[341371155,1730848240394,-500.0,0.00041095,14]
[341371157,1730848240404,-500.0,0.00041095,14]
[341371160,1730848240414,-500.0,0.00041095,14]
[341371162,1730848240423,-500.0,0.00041095,14]
[341371164,1730848240434,-719.98,0.00041095,14]
[341371166,1730848240444,-617.97317173,0.00041095,14]
[341371168,1730848240454,-506.39226709,0.00041095,14]
[341371170,1730848240464,-543.91230691,0.00041095,14]
[341371172,1730848240475,-500.0,0.00041095,14]
[341371174,1730848240484,-503.84163696,0.00041095,14]
[341371176,1730848240493,-506.28985336,0.00041095,14]
[341371178,1730848240502,-151.44013807,0.00041095,14]
[341371180,1730848240512,-505.36714806,0.00041095,14]
[341371182,1730848240521,-500.0,0.00041095,14]
[341371184,1730848240530,-500.0,0.00041095,14]
[341371186,1730848240540,-501.53011207,0.00041095,14]
[341371188,1730848240551,-151.0,0.00041095,14]
[341371190,1730848240562,-151.0,0.00041095,14]
[341371191,1730848240576,-151.0,0.00041095,14]
[341371194,1730848240586,-500.0,0.00041095,14]
[341371195,1730848240595,-500.0,0.00041095,14]
[341371197,1730848240607,-500.0,0.00041095,14]
[341371199,1730848240617,-500.0,0.00041095,14]
[341371201,1730848240627,-500.0,0.00041095,14]
[341371203,1730848240636,-500.0,0.00041095,14]
[341371205,1730848240645,-500.0,0.00041095,14]
[341371207,1730848240655,-500.0,0.00041095,14]
[341371209,1730848240664,-500.0,0.00041095,14]
[341371211,1730848240673,-502.29645745,0.00041095,14]
[341371213,1730848240682,-500.0,0.00041095,14]
[341371215,1730848240691,-500.0,0.00041095,15]
[341371216,1730848240701,-505.49142021,0.00041095,14]
[341371218,1730848240710,-500.0,0.00041095,14]
[341371220,1730848240720,-500.0,0.00041095,14]
[341371222,1730848240729,-503.30611291,0.00041095,14]
[341371224,1730848240738,-500.0,0.00041095,14]
[341371226,1730848240747,-500.0,0.00041095,14]
[341371228,1730848240757,-500.0,0.00041095,14]
[341371230,1730848240766,-500.0,0.00041095,14]
[341371232,1730848240776,-500.0,0.00041095,14]
[341371234,1730848240785,-502.8405105,0.00041095,14]
[341371236,1730848240795,-587.73,0.00041095,14]
[341371238,1730848240804,-502.47603472,0.00041095,14]
[341371240,1730848240813,-633.16062197,0.00041095,14]
[341371242,1730848240823,-521.70358545,0.00041095,14]
[341371244,1730848240832,-500.0,0.00041095,14]
[341371245,1730848240841,-1000.0,0.00041095,10]
[341371247,1730848240851,-586.29561954,0.00041095,14]
[341371249,1730848240860,-500.0,0.00041095,14]
[341371251,1730848240869,-500.0,0.00041095,14]
[341371253,1730848240878,-500.0,0.00041095,14]
[341371255,1730848240887,-500.0,0.00041095,14]
[341371257,1730848240897,-502.34085587,0.00041095,14]
[341371259,1730848240906,-500.0,0.00041095,14]
[341371261,1730848240915,-189.42689502,0.00041095,14]
[341371263,1730848240925,-518.235314,0.00041095,14]
[341371265,1730848240936,-500.0,0.00041095,14]
[341371267,1730848240945,-500.0,0.00041095,14]
[341371269,1730848240954,-517.66718932,0.00041095,14]
[341371271,1730848240963,-500.0,0.00041095,14]
[341371273,1730848240973,-500.0,0.00041095,14]
[341371275,1730848240982,-502.42655394,0.00041095,14]
[341371277,1730848240991,-502.12079331,0.00041095,14]
[341371279,1730848241000,-500.0,0.00041095,14]
[341371281,1730848241010,-1280.28,0.00041095,14]
[341371283,1730848241019,-500.0,0.00041095,14]
[341371285,1730848241028,-500.0,0.00041095,14]
[341371287,1730848241037,-500.0,0.00041095,14]
[341371289,1730848241047,-681.07,0.00041095,14]
[341371291,1730848241057,-500.0,0.00041095,14]
[341371293,1730848241066,-502.68772773,0.00041095,14]
[341371295,1730848241076,-500.0,0.00041095,14]
[341371297,1730848241085,-500.0,0.00041095,14]
[341371299,1730848241094,-885.12,0.00041095,14]
[341371301,1730848241103,-502.7622523,0.00041095,14]
[341371303,1730848241111,-508.29787921,0.00041095,14]
[341371305,1730848241121,-500.0,0.00041095,14]
[341371307,1730848241130,-502.78876129,0.00041095,14]
[341371309,1730848241139,-500.0,0.00041095,14]
[341371311,1730848241149,-500.0,0.00041095,14]
[341371313,1730848241158,-500.0,0.00041095,14]
[341371315,1730848241167,-500.0,0.00041095,14]
[341371316,1730848241176,-502.44037899,0.00041095,14]
[341371318,1730848241185,-500.0,0.00041095,14]
[341371320,1730848241194,-151.0,0.00041095,14]
[341371322,1730848241204,-151.0,0.00041095,14]
[341371325,1730848241216,-151.0,0.00041095,14]
[341371327,1730848241225,-312.58006359,0.00041095,14]
[341371329,1730848241234,-153.46616,0.00041095,14]
[341371331,1730848241243,-500.0,0.00041095,14]
[341371332,1730848241252,-500.0,0.00041095,14]
[341371334,1730848241261,-500.0,0.00041095,14]
[341371336,1730848241270,-500.0,0.00041095,14]
[341371338,1730848241279,-500.0,0.00041095,14]
[341371340,1730848241288,-269.89669878,0.00041095,14]
[341371342,1730848241297,-521.0,0.00041095,14]
[341371344,1730848241306,-500.0,0.00041095,14]
[341371346,1730848241315,-312.4892583,0.00041095,14]
[341371348,1730848241324,-500.0,0.00041095,14]
[341371350,1730848241333,-500.0,0.00041095,14]
[341371352,1730848241341,-500.0,0.00041095,14]
[341371354,1730848241351,-500.0,0.00041095,14]
[341371356,1730848241359,-476.20825488,0.00041095,14]
[341371392,1730848242169,-303.95954616,0.00040498,120]
[341371393,1730848242180,-196.04045384,0.00040498,120]
[341371394,1730848242190,-23.79174512,0.00041095,14]
[341371395,1730848242199,-500.0,0.00041095,14]
[341371396,1730848242208,-386.3920941,0.00041095,14]
[341371404,1730848246308,-500.0,0.00040995,2]
[341371405,1730848246318,-113.6079059,0.00041095,14]
[341371406,1730848246327,-312.38307686,0.00041095,14]
[341371407,1730848246337,-510.48,0.00041095,14]
[341371408,1730848246346,-500.0,0.00041095,14]
[341371409,1730848246356,-502.82064879,0.00041095,14]
[341371410,1730848246366,-668.53,0.00041095,14]
[341371411,1730848246375,-500.9103414,0.00041095,14]
[341371412,1730848246385,-633.12578576,0.00041095,14]
[341371413,1730848246394,-569.7840638,0.00041095,14]
[341371414,1730848246404,-500.0,0.00041095,14]
[341371415,1730848246413,-500.18,0.00041095,14]
[341371416,1730848246423,-1083.67,0.00041095,14]
[341371417,1730848246432,-500.0,0.00041095,14]
[341371418,1730848246441,-500.0,0.00041095,14]
[341371419,1730848246451,-500.0,0.00041095,14]
[341371420,1730848246461,-500.0,0.00041095,14]
[341371421,1730848246470,-504.86606095,0.00041095,14]
[341371422,1730848246479,-500.0,0.00041095,14]
[341371423,1730848246489,-500.0,0.00041095,14]
[341371424,1730848246499,-551.9,0.00041095,14]
[341371425,1730848246508,-501.23383683,0.00041095,14]
[341371426,1730848246518,-500.0,0.00041095,14]
[341371427,1730848246528,-500.0,0.00041095,14]
[341371428,1730848246538,-500.0,0.00041095,14]
[341371429,1730848246548,-500.0,0.00041095,14]
[341371430,1730848246559,-500.0,0.00041095,14]
[341371431,1730848246569,-500.0,0.00041095,14]
[341371432,1730848246579,-500.0,0.00041095,14]
[341371433,1730848246588,-501.80309641,0.00041095,14]
[341371434,1730848246598,-500.0,0.00041095,14]
[341371435,1730848246608,-503.54024583,0.00041095,14]
[341371436,1730848246618,-500.0,0.00041095,14]
[341371437,1730848246629,-500.0,0.00041095,14]
[341371438,1730848246639,-500.6835118,0.00041095,14]